bitfinex-derivatives/quotes_BTCF0:USTF0_20250724
["timestamp","ask_amount","ask_price","bid_price","bid_amount"]
[1753363770642,0.49676542,118750.0,118740.0,0.56196552]
[1753363772152,0.49676542,118750.0,118740.0,0.89196552]
[1753363773347,0.1393361,118750.0,118740.0,0.89196552]
[1753363773654,0.49676542,118750.0,118740.0,0.89196552]
[1753363773951,0.49676542,118750.0,118740.0,0.56196552]
[1753363774143,0.49676542,118750.0,118740.0,0.93196552]
[1753363774458,0.49676542,118750.0,118740.0,0.56196552]
[1753363774847,0.1393361,118750.0,118740.0,0.56196552]
[1753363775047,0.49676542,118750.0,118740.0,0.56196552]
[1753363776051,0.49676542,118750.0,118740.0,0.4867732]
[1753363776751,0.49676542,118750.0,118740.0,0.8067732]
[1753363777167,0.49185542,118750.0,118740.0,0.8067732]
[1753363777464,0.48399542,118750.0,118740.0,0.8067732]
[1753363777764,0.1265661,118750.0,118740.0,0.8067732]
[1753363778168,0.1265661,118750.0,118740.0,0.88196552]
[1753363778468,0.94530932,118760.0,118750.0,0.12073]
[1753363778766,0.48409111,118760.0,118750.0,1.40780398]
[1753363779062,0.48409111,118760.0,118750.0,0.81992398]
[1753363779255,0.66272645,118760.0,118750.0,0.56767183]
[1753363779459,0.53606466,118760.0,118750.0,0.93767183]
[1753363780066,0.53706466,118760.0,118750.0,0.93767183]
[1753363780264,0.53706466,118760.0,118750.0,0.88767183]
[1753363780458,0.53706466,118760.0,118750.0,0.92767183]
[1753363781653,0.53606466,118760.0,118750.0,0.93067183]
[1753363782060,0.00491,118770.0,118750.0,1.78658416]
[1753363782368,0.71898544,118770.0,118760.0,0.48153]
[1753363782568,0.72684544,118770.0,118760.0,0.48153]
[1753363783067,0.72684544,118770.0,118760.0,0.81153]
[1753363783365,1.2629101,118770.0,118760.0,0.48153]
[1753363784068,1.2629101,118770.0,118760.0,0.48353]
[1753363785366,1.2629101,118770.0,118760.0,0.48453]
[1753363788071,0.99487777,118770.0,118760.0,0.48453]
[1753363788671,1.2629101,118770.0,118760.0,0.48453]
[1753363788966,0.99487777,118770.0,118760.0,0.48453]
[1753363789175,0.6750301,118770.0,118760.0,0.48453]
[1753363789363,1.2628301,118770.0,118760.0,0.38827]
[1753363789562,1.87086243,118770.0,118760.0,0.3638]
[1753363789972,1.84086243,118770.0,118760.0,0.3638]
[1753363790367,1.5728301,118770.0,118760.0,0.3638]
[1753363790566,1.2628301,118770.0,118760.0,0.38827]
[1753363790766,1.6228301,118770.0,118760.0,0.38727]
[1753363790966,1.6228301,118770.0,118760.0,0.38827]
[1753363791171,1.44422076,118770.0,118760.0,0.38827]
[1753363791371,1.42422076,118770.0,118760.0,0.38827]
[1753363791571,1.42422076,118770.0,118760.0,0.38727]
[1753363792069,1.42422076,118770.0,118760.0,0.38527]
[1753363792274,1.42522076,118770.0,118760.0,0.38527]
[1753363793373,1.78267608,118770.0,118760.0,0.38527]
[1753363794375,1.78267608,118770.0,118760.0,0.38874264]
[1753363794577,0.74776544,118770.0,118760.0,0.38874264]
[1753363794872,1.46522076,118770.0,118760.0,0.38874264]
[1753363795076,0.74776544,118770.0,118760.0,0.38874264]
[1753363795277,1.08522076,118770.0,118760.0,0.48500264]
[1753363799677,1.44522076,118770.0,118760.0,0.48500264]
[1753363799880,1.44522076,118770.0,118760.0,0.40489264]
[1753363800084,1.44522076,118770.0,118760.0,0.38874264]
[1753363800378,1.80267608,118770.0,118760.0,0.38874264]
[1753363800782,1.45522076,118770.0,118760.0,0.38874264]
[1753363801279,1.81267608,118770.0,118760.0,0.38874264]
[1753363801477,1.81267608,118770.0,118760.0,0.36427264]
[1753363801675,2.17347608,118770.0,118750.0,0.38412]
[1753363801875,0.72768064,118760.0,118750.0,0.02332]
[1753363802178,0.01277,118750.0,118740.0,0.45931232]
[1753363802385,1.29794532,118750.0,118740.0,0.38412]
[1753363802579,1.42491263,118750.0,118740.0,0.38412]
[1753363803477,1.42491263,118750.0,118740.0,0.02332]
[1753363804687,0.01277,118740.0,118730.0,0.38412]
[1753363804985,0.84580495,118740.0,118730.0,0.38412]
[1753363806188,0.91198767,118740.0,118730.0,0.38412]
[1753363806485,1.27278767,118740.0,118730.0,0.02332]
[1753363806685,0.87660495,118740.0,118730.0,0.02332]
[1753363806877,1.18660495,118740.0,118730.0,0.02332]
[1753363807389,1.18660495,118740.0,118730.0,0.02432]
[1753363807596,0.51580495,118740.0,118730.0,0.02432]
[1753363807781,0.51580495,118740.0,118730.0,0.48154]
[1753363808882,1.10356495,118740.0,118730.0,0.48154]
[1753363809086,0.15834963,118740.0,118730.0,0.48154]
[1753363809289,0.51580495,118740.0,118730.0,0.48154]
[1753363810390,1.20660495,118740.0,118730.0,0.003]
[1753363811589,1.37504495,118740.0,118730.0,0.003]
[1753363812696,1.73250027,118740.0,118710.0,0.38412]
[1753363812896,0.71988064,118720.0,118710.0,0.38412]
[1753363813091,0.36242532,118720.0,118710.0,0.02332]
[1753363813297,0.79908276,118720.0,118710.0,0.02332]
[1753363813491,0.44162744,118720.0,118710.0,0.02332]
[1753363813700,1.15653808,118720.0,118710.0,0.02332]
[1753363814895,0.00497,118710.0,118700.0,0.02332]
[1753363815096,0.00497,118700.0,118690.0,0.38412]
[1753363815292,0.36242532,118700.0,118690.0,0.38412]
[1753363815498,0.85828143,118700.0,118690.0,0.38412]
[1753363815690,1.43608143,118700.0,118690.0,0.38412]
[1753363815892,1.45608143,118700.0,118690.0,0.4311]
[1753363816086,1.45608143,118700.0,118690.0,0.457]
[1753363816794,1.45608143,118700.0,118690.0,0.44343]
[1753363817000,1.45608143,118700.0,118690.0,0.41502]
[1753363817295,1.43608143,118700.0,118690.0,0.41502]
[1753363817495,0.71882611,118700.0,118690.0,0.38912]
[1753363817693,1.09628143,118700.0,118690.0,0.48354]
[1753363817890,1.07628143,118700.0,118690.0,0.48354]
[1753363818099,1.09628143,118700.0,118690.0,0.48354]
[1753363818299,1.09628143,118700.0,118690.0,0.47854]
[1753363818499,0.50828143,118700.0,118690.0,0.48154]
[1753363818893,0.81828143,118700.0,118690.0,0.12074]
[1753363819094,0.49828143,118700.0,118690.0,0.12074]
[1753363819295,0.49828143,118700.0,118690.0,0.48454]
[1753363820198,0.49828143,118700.0,118690.0,0.12374]
[1753363820801,0.14082611,118700.0,118690.0,0.12374]
[1753363821000,0.13891611,118700.0,118690.0,0.82454]
[1753363821199,0.94728532,118720.0,118700.0,0.04744]
[1753363821399,0.50242532,118720.0,118710.0,0.47854]
[1753363821594,0.12718971,118720.0,118710.0,0.83934]
[1753363821791,0.94756532,118730.0,118710.0,1.18934]
[1753363821997,0.67936532,118730.0,118720.0,0.47854]
[1753363822197,0.80655503,118730.0,118720.0,0.47854]
[1753363822705,0.59464503,118730.0,118720.0,0.47854]
[1753363823397,0.48564503,118730.0,118720.0,1.4271]
[1753363823600,0.001,118730.0,118720.0,1.4271]
[1753363823795,0.001,118730.0,118720.0,1.0671]
[1753363824403,0.001,118730.0,118720.0,1.3971]
[1753363824591,0.001,118730.0,118720.0,1.0671]
[1753363824796,0.001,118730.0,118720.0,1.4071]
[1753363825106,0.001,118730.0,118720.0,1.76455532]
[1753363825401,0.95454,118770.0,118760.0,0.11774]
[1753363825604,0.95454,118770.0,118760.0,0.13629347]
[1753363825605,1.63199532,118770.0,118760.0,0.13629347]
[1753363825806,1.75795143,118770.0,118760.0,0.11774]
[1753363826105,1.76086143,118770.0,118760.0,0.11774]
[1753363826304,2.11831675,118770.0,118760.0,0.11774]
[1753363826604,2.12031675,118770.0,118760.0,0.11774]
[1753363826792,1.53423675,118770.0,118760.0,0.11774]
[1753363826997,2.12335675,118770.0,118760.0,0.02332]
[1753363827298,0.00757,118760.0,118750.0,0.0238]
[1753363827500,1.99256064,118760.0,118750.0,0.0238]
[1753363827702,2.11943565,118760.0,118750.0,0.0238]
[1753363828706,2.12043565,118760.0,118750.0,0.0238]
[1753363829506,2.12143565,118760.0,118750.0,0.0238]
[1753363831205,1.40652501,118760.0,118750.0,0.0238]
[1753363831408,2.12143565,118760.0,118750.0,0.0238]
[1753363833609,2.12143565,118760.0,118750.0,0.0588]
[1753363834305,2.12143565,118760.0,118750.0,0.0238]
[1753363834706,0.00757,118750.0,118740.0,0.0238]
[1753363835006,1.21180035,118750.0,118740.0,0.0238]
[1753363835405,1.80132035,118750.0,118740.0,0.11906]
[1753363835808,1.79666035,118750.0,118740.0,0.11906]
[1753363836011,1.54192035,118750.0,118740.0,0.11906]
[1753363837212,0.95180035,118750.0,118740.0,0.11906]
[1753363837509,0.59100035,118750.0,118740.0,0.11906]
[1753363837712,0.59100035,118750.0,118740.0,0.10542]
[1753363837713,0.84100035,118750.0,118740.0,0.10542]
[1753363838006,1.20180035,118750.0,118740.0,0.10542]
[1753363838211,1.20180035,118750.0,118740.0,0.039]
[1753363838507,0.85180035,118750.0,118740.0,0.08764]
[1753363838708,0.89180035,118750.0,118740.0,0.11906]
[1753363839712,1.16180035,118750.0,118740.0,0.11906]
[1753363839911,1.23180035,118750.0,118740.0,0.11906]
[1753363840210,1.23180035,118750.0,118740.0,0.10542]
[1753363840911,1.23180035,118750.0,118740.0,0.0238]
[1753363841412,0.87100035,118750.0,118740.0,0.0238]
[1753363841616,1.23180035,118750.0,118740.0,0.0238]
[1753363842807,1.23180035,118750.0,118740.0,0.09728]
[1753363843115,1.23180035,118750.0,118740.0,0.08364]
[1753363843309,1.23180035,118750.0,118740.0,0.04864]
[1753363843909,1.23180035,118750.0,118740.0,0.11906]
[1753363844316,1.23380035,118750.0,118740.0,0.11906]
[1753363845513,1.23380035,118750.0,118730.0,0.01845172]
[1753363845709,0.95562532,118740.0,118730.0,0.04225172]
[1753363845910,1.28562532,118740.0,118730.0,0.04225172]
[1753363846111,1.41110792,118740.0,118730.0,0.04225172]
[1753363848514,1.77190792,118740.0,118720.0,0.035]
[1753363848715,0.72582532,118730.0,118720.0,0.0238]
[1753363848914,1.41328064,118730.0,118720.0,0.0238]
[1753363849220,1.5388429,118730.0,118720.0,0.0238]
[1753363849812,1.18138758,118730.0,118720.0,0.0238]
[1753363850205,1.20138758,118730.0,118720.0,0.11906]
[1753363850411,0.85138758,118730.0,118720.0,0.11906]
[1753363850917,1.20138758,118730.0,118720.0,0.11906]
[1753363851917,0.90138758,118730.0,118720.0,0.11906]
[1753363852319,1.20138758,118730.0,118720.0,0.11906]
[1753363852525,0.85138758,118730.0,118720.0,0.11906]
[1753363852714,1.17138758,118730.0,118720.0,0.11906]
[1753363852915,1.17138758,118730.0,118720.0,0.039]
[1753363853121,1.5259329,118730.0,118710.0,0.0238]
[1753363853319,1.67368064,118720.0,118710.0,0.0238]
[1753363853523,2.05368064,118720.0,118710.0,0.0238]
[1753363853722,2.18055489,118720.0,118710.0,0.0238]
[1753363854520,2.18055489,118720.0,118710.0,0.0248]
[1753363854720,2.18055489,118720.0,118710.0,0.0258]
[1753363855223,1.88491915,118720.0,118710.0,0.0258]
[1753363855523,1.16564425,118720.0,118710.0,0.0248]
[1753363855718,1.51411915,118720.0,118710.0,0.0248]
[1753363855913,1.51411915,118720.0,118710.0,0.0258]
[1753363856222,1.87491915,118720.0,118710.0,0.0258]
[1753363857825,1.87491915,118720.0,118710.0,0.002]
[1753363858920,1.87491915,118720.0,118710.0,0.02503]
[1753363859721,2.04329035,118720.0,118710.0,0.02503]
[1753363859922,2.04329035,118720.0,118710.0,0.002]
[1753363861821,0.2180724,118700.0,118690.0,0.02303]
[1753363862021,2.6889422,118700.0,118690.0,0.02303]
[1753363862221,2.81465253,118700.0,118690.0,0.02303]
[1753363862616,0.1759841,118690.0,118680.0,0.05531]
[1753363862819,0.1759983,118680.0,118670.0,0.04198815]
[1753363863022,1.8774732,118680.0,118670.0,0.02303]
[1753363863230,2.00377777,118680.0,118670.0,0.02303]
[1753363863429,0.2602389,118670.0,118660.0,0.02303]
[1753363863628,1.4124274,118670.0,118660.0,0.02303]
[1753363863929,1.53803244,118670.0,118660.0,0.02303]
[1753363864928,0.1731451,118640.0,118630.0,0.2620353]
[1753363865226,1.54785,118640.0,118630.0,0.2820353]
[1753363865422,1.91785,118640.0,118630.0,0.3050653]
[1753363865732,1.85785,118640.0,118630.0,0.2850693]
[1753363866030,1.67502631,118640.0,118630.0,0.0701]
[1753363866230,1.99502631,118640.0,118630.0,0.04881]
[1753363866431,1.99502631,118640.0,118630.0,0.12257]
[1753363867126,1.67502631,118640.0,118630.0,0.2910693]
[1753363867331,1.57575141,118640.0,118630.0,0.2960693]
[1753363867530,2.04502631,118640.0,118630.0,0.12757]
[1753363868032,2.04502631,118640.0,118630.0,0.2960693]
[1753363868727,2.04502631,118640.0,118630.0,0.12757]
[1753363868931,2.04502631,118640.0,118630.0,0.11338]
[1753363869134,2.04502631,118640.0,118630.0,0.2818793]
[1753363869728,1.67502631,118640.0,118630.0,0.2960693]
[1753363870032,2.05502631,118640.0,118630.0,0.01469023]
[1753363870233,0.00466,118610.0,118600.0,0.02303]
[1753363870530,1.9415464,118610.0,118600.0,0.02566427]
[1753363870830,2.11071427,118610.0,118600.0,0.02566427]
[1753363871328,2.11071427,118610.0,118600.0,0.02303]
[1753363871528,1.69143937,118610.0,118600.0,0.02303]
[1753363871834,2.11071427,118610.0,118600.0,0.02403]
[1753363873023,1.92884191,118610.0,118600.0,0.286112]
[1753363873230,2.14884191,118610.0,118600.0,0.288112]
[1753363873527,1.80884191,118610.0,118600.0,0.288112]
[1753363873728,1.80884191,118610.0,118600.0,0.10538]
[1753363874034,2.14884191,118610.0,118600.0,0.10538]
[1753363874434,1.94884191,118610.0,118600.0,0.273922]
[1753363874828,1.87990027,118610.0,118600.0,0.288112]
[1753363875034,0.12994387,118610.0,118600.0,0.648912]
[1753363875333,0.61839,118620.0,118610.0,0.2850977]
[1753363875537,0.7839935,118620.0,118610.0,0.2850977]
[1753363875739,1.32977718,118620.0,118610.0,0.2850977]
[1753363876036,1.33268718,118620.0,118610.0,0.2850977]
[1753363876237,0.72186718,118620.0,118610.0,0.2850977]
[1753363876833,1.09186718,118620.0,118610.0,0.11657]
[1753363877025,0.72186718,118620.0,118610.0,0.2850978]
[1753363877332,1.08266718,118620.0,118610.0,0.2850978]
[1753363877539,1.08666718,118620.0,118610.0,0.2860978]
[1753363878037,1.08666718,118620.0,118610.0,0.11757]
[1753363878242,1.46666718,118620.0,118610.0,0.11757]
[1753363878541,1.40666718,118620.0,118610.0,0.11757]
[1753363878938,1.46666718,118620.0,118610.0,0.11757]
[1753363879143,1.10786718,118620.0,118610.0,0.11757]
[1753363879838,1.46866718,118620.0,118610.0,0.11757]
[1753363880042,1.46866718,118620.0,118610.0,0.001]
[1753363880541,1.04939228,118620.0,118610.0,0.001]
[1753363880739,1.46866718,118620.0,118610.0,0.001]
[1753363880942,1.46866718,118620.0,118610.0,0.02403]
[1753363882440,1.46866718,118620.0,118610.0,0.10338]
[1753363882748,1.46866718,118620.0,118610.0,0.11757]
[1753363883243,1.46866718,118620.0,118610.0,0.10338]
[1753363883646,1.46866718,118620.0,118610.0,0.02403]
[1753363883951,1.46866718,118620.0,118610.0,0.001]
[1753363886350,1.46866718,118620.0,118610.0,0.02403]
[1753363887442,0.1761262,118590.0,118580.0,0.08591]
[1753363887648,1.89622034,118590.0,118580.0,0.08591]
[1753363887850,1.89622034,118590.0,118580.0,0.09585]
[1753363888049,1.89622034,118590.0,118580.0,0.12075]
[1753363888246,2.02234873,118590.0,118580.0,0.07244]
[1753363888454,2.02234873,118590.0,118580.0,0.025]
[1753363888750,2.02234873,118590.0,118580.0,0.027]
[1753363889147,1.60307383,118590.0,118580.0,0.027]
[1753363889449,2.02234873,118590.0,118580.0,0.027]
[1753363889649,1.69234873,118590.0,118580.0,0.2294904]
[1753363889837,2.01234873,118590.0,118580.0,0.2693404]
[1753363890040,2.06234873,118590.0,118580.0,0.12275]
[1753363890550,2.056868,118590.0,118580.0,0.12275]
[1753363890850,2.058868,118590.0,118580.0,0.026]
[1753363891354,2.058868,118590.0,118580.0,0.2284904]
[1753363891556,1.688908,118590.0,118580.0,0.2903204]
[1753363891755,2.048908,118590.0,118580.0,0.2584004]
[1753363891945,2.048908,118590.0,118580.0,0.2903204]
[1753363892256,2.008988,118590.0,118580.0,0.2903204]
[1753363892840,1.688988,118590.0,118580.0,0.2903204]
[1753363893046,1.450628,118590.0,118580.0,0.2903204]
[1753363893252,2.068588,118590.0,118580.0,0.2903204]
[1753363893557,1.450628,118590.0,118580.0,0.2903204]
[1753363893852,2.018588,118590.0,118580.0,0.2903204]
[1753363894049,0.6513531,118590.0,118580.0,0.2903204]
[1753363894351,1.69674949,118590.0,118580.0,0.6511204]
[1753363894555,1.69754949,118590.0,118580.0,0.2903204]
[1753363894751,1.64674949,118590.0,118580.0,0.2903204]
[1753363895052,1.33674949,118590.0,118580.0,0.2903204]
[1753363895252,1.69754949,118590.0,118580.0,0.2904731]
[1753363895552,2.05754949,118590.0,118580.0,0.2904731]
[1753363896157,1.69754949,118590.0,118580.0,0.2904731]
[1753363896454,2.04754949,118590.0,118580.0,0.2904731]
[1753363896754,1.69754949,118590.0,118580.0,0.2904731]
[1753363896958,1.07966949,118590.0,118580.0,0.2904731]
[1753363897155,0.74748839,118590.0,118580.0,0.6512731]
[1753363897349,0.002,118590.0,118580.0,0.6512731]
[1753363897752,0.002,118590.0,118580.0,0.6612731]
[1753363898952,0.002,118590.0,118580.0,0.6812731]
[1753363899151,0.002,118590.0,118580.0,1.0312731]
[1753363899953,0.7875678,118610.0,118600.0,0.3002476]
[1753363900154,0.1685278,118610.0,118600.0,0.6610476]
[1753363900463,0.8744936,118620.0,118610.0,0.2642778]
[1753363900752,0.8815836,118620.0,118610.0,0.30758923]
[1753363901057,1.2452936,118620.0,118610.0,0.30758923]
[1753363901257,1.9845685,118620.0,118610.0,0.30758923]
[1753363901957,1.6645685,118620.0,118610.0,0.30758923]
[1753363902154,0.9936226,118630.0,118620.0,0.2891636]
[1753363902453,1.37830536,118630.0,118620.0,0.2891636]
[1753363902655,0.12652276,118630.0,118620.0,0.6499636]
[1753363902955,0.85483916,118640.0,118630.0,0.2891494]
[1753363903160,1.27423406,118640.0,118630.0,0.2891494]
[1753363903457,1.2097966,118640.0,118630.0,0.2891494]
[1753363903650,1.5797966,118640.0,118630.0,0.2891494]
[1753363903851,1.8905966,118640.0,118630.0,0.2891494]
[1753363904258,1.5797966,118640.0,118630.0,0.2891494]
[1753363904557,1.96325765,118640.0,118630.0,0.2891494]
[1753363904760,1.59325765,118640.0,118630.0,0.2891494]
[1753363904958,1.96325765,118640.0,118630.0,0.2891494]
[1753363905254,1.96825765,118640.0,118630.0,0.2891494]
[1753363905460,1.59825765,118640.0,118630.0,0.2891494]
[1753363905759,1.17898275,118640.0,118630.0,0.2891494]
[1753363905953,1.59825765,118640.0,118630.0,0.2891494]
[1753363906150,0.82275615,118640.0,118630.0,0.2891494]
[1753363907050,0.65427105,118640.0,118630.0,0.6499494]
[1753363907250,0.02766105,118640.0,118630.0,0.6499494]
[1753363907455,0.02766105,118640.0,118630.0,1.0692243]
[1753363907653,0.1713687,118660.0,118650.0,0.1839909]
[1753363907850,0.02378374,118660.0,118650.0,0.2891209]
[1753363908050,0.18933054,118660.0,118650.0,0.6499209]
[1753363908246,0.60860544,118660.0,118650.0,0.2891209]
[1753363908466,0.50224054,118660.0,118650.0,0.2891209]
[1753363908655,0.92617544,118660.0,118650.0,0.2891209]
[1753363908853,1.28697544,118660.0,118650.0,0.2891209]
[1753363909253,1.34697544,118660.0,118650.0,0.2891209]
[1753363909659,0.92770054,118660.0,118650.0,0.2408109]
[1753363909857,1.34697544,118660.0,118650.0,0.2408109]
[1753363910056,0.61817544,118660.0,118650.0,0.2891209]
[1753363910356,0.95217544,118660.0,118650.0,0.2891209]
[1753363910554,0.98297544,118660.0,118650.0,0.2891209]
[1753363910958,0.45371864,118660.0,118650.0,0.2891209]
[1753363911156,0.02287374,118660.0,118650.0,0.9799209]
[1753363911459,0.02287374,118660.0,118650.0,1.56774779]
[1753363911657,0.02287374,118660.0,118650.0,1.81774779]
[1753363912258,1.80884146,118690.0,118680.0,0.1938884]
[1753363912469,1.49618955,118690.0,118680.0,0.2746884]
[1753363912655,1.66828563,118690.0,118680.0,0.2746884]
[1753363912859,1.24901073,118690.0,118680.0,0.2746884]
[1753363913055,1.66828563,118690.0,118680.0,0.2746884]
[1753363913363,1.00956837,118690.0,118680.0,0.2890784]
[1753363913561,0.84515417,118690.0,118680.0,0.2890784]
[1753363913758,0.35478721,118690.0,118680.0,0.6498784]
[1753363913964,0.52320141,118690.0,118680.0,0.6498784]
[1753363914463,0.89755358,118690.0,118680.0,0.2890784]
[1753363914663,0.89555358,118690.0,118680.0,0.2890784]
[1753363914958,0.52875358,118690.0,118680.0,0.2890784]
[1753363915158,0.35576938,118690.0,118680.0,0.6498784]
[1753363915654,0.95102848,118690.0,118680.0,0.2890784]
[1753363915852,1.31182848,118690.0,118680.0,0.2890784]
[1753363916165,1.43841068,118690.0,118680.0,0.1933284]
[1753363916358,1.43841068,118690.0,118680.0,0.0249]
[1753363916662,1.43841068,118690.0,118680.0,0.1933284]
[1753363916860,1.43841068,118690.0,118680.0,0.0249]
[1753363917059,0.1730884,118680.0,118670.0,0.191251]
[1753363917259,1.97500268,118680.0,118670.0,0.191251]
[1753363917455,1.17572778,118680.0,118670.0,0.191251]
[1753363917665,1.59500268,118680.0,118670.0,0.191251]
[1753363917862,1.8942333,118680.0,118670.0,0.222961]
[1753363918064,1.8942333,118680.0,118670.0,0.237091]
[1753363918263,1.8952333,118680.0,118670.0,0.237091]
[1753363918663,1.0070733,118680.0,118670.0,0.237091]
[1753363918967,1.0070733,118680.0,118670.0,0.285171]
[1753363919154,0.9570733,118680.0,118670.0,0.285171]
[1753363919556,0.5387984,118680.0,118670.0,0.285171]
[1753363919764,0.9580733,118680.0,118670.0,0.285171]
[1753363920356,1.3280733,118680.0,118670.0,0.285171]
[1753363920663,1.3080733,118680.0,118670.0,0.02281]
[1753363921052,0.1760126,118670.0,118660.0,0.0416198]
[1753363921255,1.4854126,118670.0,118660.0,0.2100766]
[1753363921460,1.8846875,118670.0,118660.0,0.2100766]
[1753363921659,1.5746875,118670.0,118660.0,0.2100766]
[1753363922166,1.1554126,118670.0,118660.0,0.2100766]
[1753363922366,1.8846875,118670.0,118660.0,0.2100766]
[1753363922566,1.4654126,118670.0,118660.0,0.2100766]
[1753363922764,1.8946875,118670.0,118660.0,0.2100766]
[1753363922969,0.36837,118670.0,118660.0,0.3039966]
[1753363923268,0.5368126,118670.0,118660.0,0.3039966]
[1753363923662,0.36837,118670.0,118660.0,0.3039966]
[1753363923856,0.7876449,118670.0,118660.0,0.3039966]
[1753363924061,0.00757,118680.0,118670.0,0.2851726]
[1753363924259,0.23963045,118700.0,118690.0,0.2164942]
[1753363924461,1.17222,118700.0,118690.0,0.2851442]
[1753363924766,1.72027449,118700.0,118690.0,0.2851442]
[1753363925067,1.55187449,118700.0,118690.0,0.2851442]
[1753363925466,1.30099959,118700.0,118690.0,0.2851442]
[1753363925667,1.55187449,118700.0,118690.0,0.2851442]
[1753363925869,1.13259959,118700.0,118690.0,0.2851442]
[1753363926168,0.39157,118700.0,118690.0,1.0159442]
[1753363926366,0.39157,118700.0,118690.0,0.9959442]
[1753363926564,0.054,118700.0,118690.0,0.9659442]
[1753363926867,0.004,118700.0,118690.0,0.9659442]
[1753363927068,0.004,118700.0,118690.0,0.6459442]
[1753363927272,0.004,118700.0,118690.0,0.9859442]
[1753363927470,0.004,118700.0,118690.0,1.0159442]
[1753363927769,0.004,118700.0,118690.0,1.2650642]
[1753363927965,0.004,118700.0,118690.0,0.6459442]
[1753363928168,0.4221849,118700.0,118690.0,0.2851442]
[1753363928470,0.4231849,118700.0,118690.0,0.2851442]
[1753363928967,0.591585,118700.0,118690.0,0.2851442]
[1753363929170,0.00391,118700.0,118690.0,0.2851442]
[1753363929370,0.4231849,118700.0,118690.0,0.2851442]
[1753363929571,0.591585,118700.0,118690.0,0.2851442]
[1753363929767,0.8877701,118700.0,118690.0,0.2851442]
[1753363930070,0.9177701,118700.0,118690.0,0.1912242]
[1753363930372,0.957045,118700.0,118690.0,0.1912242]
[1753363930571,1.327045,118700.0,118690.0,0.2851442]
[1753363930768,0.957045,118700.0,118690.0,0.2851442]
[1753363931067,0.596245,118700.0,118690.0,0.2851442]
[1753363931570,0.1769701,118700.0,118690.0,0.2851442]
[1753363931767,0.00957,118700.0,118690.0,0.6459442]
[1753363931967,0.002,118700.0,118690.0,0.65824441]
[1753363932169,0.002,118700.0,118690.0,0.97824441]
[1753363932376,0.002,118700.0,118690.0,0.65824441]
[1753363933070,0.002,118700.0,118690.0,0.98824441]
[1753363933265,0.02275942,118700.0,118690.0,0.98824441]
[1753363933461,0.02275942,118700.0,118690.0,0.9759442]
[1753363933665,0.02275942,118700.0,118690.0,1.60675091]
[1753363933868,0.02275942,118700.0,118690.0,1.27675091]
[1753363934272,0.002,118700.0,118690.0,2.03602581]
[1753363934472,0.002,118700.0,118690.0,1.61675091]
[1753363934672,0.002,118700.0,118690.0,1.6044642]
[1753363935070,0.002,118700.0,118690.0,2.0037391]
[1753363935369,0.002,118700.0,118690.0,2.02227389]
[1753363935673,0.002,118700.0,118690.0,2.19076989]
[1753363936074,0.002,118700.0,118690.0,1.87076989]
[1753363936464,0.002,118700.0,118690.0,1.45149499]
[1753363936665,0.002,118700.0,118690.0,1.83149499]
[1753363936967,0.002,118700.0,118690.0,1.81149499]
[1753363937168,0.002,118700.0,118690.0,1.87076989]
[1753363937472,0.002,118700.0,118690.0,2.25302861]
[1753363937672,1.0033028,118730.0,118720.0,0.2851017]
[1753363937874,0.5832279,118730.0,118720.0,0.2851017]
[1753363938275,0.9604134,118730.0,118720.0,0.2851017]
[1753363939076,0.9644134,118730.0,118720.0,0.2851017]
[1753363939379,0.9694134,118730.0,118720.0,0.2851017]
[1753363939577,0.5501385,118730.0,118720.0,0.2851017]
[1753363939778,0.9694134,118730.0,118720.0,0.2851017]
[1753363940480,0.38177,118730.0,118720.0,0.2851017]
[1753363940870,0.37857,118730.0,118720.0,0.6459017]
[1753363941168,0.37391,118730.0,118720.0,0.9559017]
[1753363941367,0.369,118730.0,118720.0,0.6459017]
[1753363941576,0.9694024,118730.0,118720.0,0.2851017]
[1753363941983,1.3302024,118730.0,118720.0,0.02281]
[1753363942173,1.3262024,118730.0,118720.0,0.02281]
[1753363942369,1.45400301,118730.0,118720.0,0.02281]
[1753363942570,1.46839669,118730.0,118720.0,0.02281]
[1753363942875,1.46939669,118730.0,118720.0,0.02281]
[1753363943376,0.1683721,118720.0,118710.0,0.1683725]
[1753363943569,0.1811563,118710.0,118700.0,0.2984279]
[1753363943876,1.3012312,118710.0,118700.0,0.2104891]
[1753363944074,1.3012312,118710.0,118700.0,0.2332991]
[1753363944275,1.3012312,118710.0,118700.0,0.1912099]
[1753363944576,1.9225912,118710.0,118700.0,0.1912099]
[1753363944779,1.9225912,118710.0,118700.0,0.1922099]
[1753363947068,1.4142049,118710.0,118700.0,0.2083899]
[1753363947274,1.9525915,118710.0,118700.0,0.2895499]
[1753363948682,1.7842049,118710.0,118700.0,0.2895499]
[1753363948882,1.9525915,118710.0,118700.0,0.2895499]
[1753363949479,0.99493,118710.0,118700.0,0.2895499]
[1753363949679,1.36493,118710.0,118700.0,0.2895499]
[1753363949983,1.7942049,118710.0,118700.0,0.2895499]
[1753363950174,1.9625915,118710.0,118700.0,0.2895499]
[1753363950886,1.5825915,118710.0,118700.0,0.2895499]
[1753363951087,1.9625915,118710.0,118700.0,0.2895499]
[1753363951585,1.9625915,118710.0,118700.0,0.1922099]
[1753363951982,1.9625915,118710.0,118700.0,0.02381]
[1753363952177,1.5433166,118710.0,118700.0,0.1922108]
[1753363952384,2.1089426,118710.0,118700.0,0.1922108]
[1753363955085,2.0789426,118710.0,118700.0,0.2267308]
[1753363955389,2.0789426,118710.0,118700.0,0.2416908]
[1753363955584,2.0789426,118710.0,118700.0,0.001]
[1753363955776,0.1785708,118700.0,118690.0,0.18694669]
[1753363955976,0.1785708,118700.0,118670.0,0.15171121]
[1753363955977,1.5895198,118700.0,118670.0,0.12684121]
[1753363956283,0.1684434,118670.0,118660.0,0.35621391]
[1753363956484,1.8900783,118670.0,118660.0,0.27199781]
[1753363956685,1.8900783,118670.0,118660.0,0.0188098]
[1753363956894,0.1684576,118660.0,118650.0,0.37953911]
[1753363957094,1.2685325,118660.0,118650.0,0.2773018]
[1753363957483,0.8492576,118660.0,118650.0,0.28950669]
[1753363957688,1.2685325,118660.0,118650.0,0.28950669]
[1753363957886,1.8902125,118660.0,118650.0,0.28950669]
[1753363958088,1.5702125,118660.0,118650.0,0.28950669]
[1753363958286,1.9102125,118660.0,118650.0,0.32402669]
[1753363958590,1.9502125,118660.0,118650.0,0.28950669]
[1753363958981,1.9502125,118660.0,118650.0,0.3536271]
[1753363959384,1.9502125,118660.0,118650.0,0.29350669]
[1753363960088,2.07720778,118660.0,118650.0,0.01620489]
[1753363960287,2.07720778,118660.0,118650.0,0.01920489]